[Event "14th Danzhou Super GM 2023"]
[Site "Danzhou"]
[Date "2023.11.19"]
[Round "6.1"]
[White "Bu, Xiangzhi"]
[Black "Jumabayev, Rinat"]
[Result "0-1"]
[ECO "A33"]
[WhiteElo "2677"]
[BlackElo "2588"]
[Annotator "TA"]
[PlyCount "170"]
[EventDate "2023.11.17"]
[EventCountry "CHN"]
[SourceTitle "playchess.com"]
[Source "ChessBase"]
[SourceQuality "1"]
[TimeControl "2700+10"]

{[%evp 10,170,13,7,21,14,26,25,25,18,27,25,26,17,18,20,26,17,35,25,27,25,39,29,46,32,20,-30,-30,-30,-30,-35,-30,-25,-19,-30,-17,-41,-17,-36,-37,-50,0,-35,-36,-26,-23,-27,-21,-31,-8,-8,-8,-8,-8,-8,-8,-8,-8,-8,-10,-22,-12,-22,0,0,0,0,0,-1,0,-16,-16,-16,-16,-16,-16,-16,-16,-48,0,0,57,4,40,40,47,41,90,94,110,32,33,0,14,0,0,-14,-14,-19,-20,-33,35,31,34,6,6,0,0,-111,-69,-65,-65,-67,-60,-79,-93,-66,-71,-79,-65,-79,-49,-205,-209,-320,-227,-228,-201,-261,-260,-251,-251,-356,-230,-318,-308,-295,-274,-295,-238,-238,-237,-507,-507,-503,-458,-465,-451,-435,-437,-421,-414,-491,-491,-491,-450,-29967,-29969,-29981,-29982,-29984,-29985]} 1. Nf3 {[%emt 0:00:04]} c5 {[%emt 0:00:05]} 2. c4 {[%emt 0:00:05]} Nf6 {[%emt 0:00:04]} 3. Nc3 {[%emt 0:00:11]} Nc6 {[%emt 0:00:06]} 4. d4 {[%emt 0:01:01]} cxd4 {[%emt 0:00:02]} 5. Nxd4 {[%emt 0:00:02]} e6 {[%emt 0:00:02]} 6. Bf4 {[%emt 0:00:02]} Nh5 $5 {[%emt 0:01:31][%mdl 4] Leaves trodden paths. A33: Symmetrical English: 2 Nf3 Nf6 3 d4 cxd4 4 Nxd4 e6 5 Nc3 Nc6.} 7. Nxc6 {[%emt 0:01:01]} dxc6 {[%emt 0:02:22]} 8. Qxd8+ {[%emt 0:00:20]} Kxd8 {[%emt 0:00:02] White has an edge.} 9. O-O-O+ {[%emt 0:00:03]} Bd7 $1 {[%emt 0:00:16]} 10. Be5 {[%emt 0:00:02] [#]} f6 $146 {[%emt 0:01:56]} ({Predecessor:} 10... Nf6 11. e3 Bb4 12. Be2 Ke7 13. g4 Rhd8 14. a3 Bxc3 15. Bxc3 Ne4 16. Be1 c5 {½-½ Tari,A (2402)-Andersen,M (2466) Vaxjo Visma GM 2014 (3)}) 11. g4 {[%emt 0:00:07]} fxe5 {[%emt 0:00:01]} 12. gxh5 {[%emt 0:00:01]} Kc7 {[%emt 0:00:15]} 13. Rg1 {[%emt 0:01:50]} Rg8 {[%emt 0:01:32]} 14. Ne4 {[%emt 0:03:58]} Be7 {[%emt 0:00:38]} 15. Bh3 {[%emt 0:00:02]} g5 {[%emt 0:03:34]} 16. Rd3 {[%emt 0:11:31]} Rad8 {[%emt 0:02:44]} 17. e3 {[%emt 0:03:11]} c5 {[%emt 0:09:10] [#]} 18. Rxd7+ {[%emt 0:13:02]} Kxd7 $11 {[%emt 0:00:05]} 19. Rd1+ {[%emt 0:00:48]} Kc7 {[%emt 0:00:03]} 20. Bxe6 {[%emt 0:00:03]} Rxd1+ 21. Kxd1 {[%emt 0:00:01][%mdl 4096] Endgame KRB-KBN} Rf8 {[%emt 0:01:03]} 22. Ke2 {[%emt 0:02:40]} a6 {[%emt 0:01:34]} 23. Nc3 {[%emt 0:00:08]} h6 {[%emt 0:01:29]} 24. Bg4 {[%emt 0:02:19]} Rb8 {[%emt 0:04:01]} 25. Kd2 {[%emt 0:01:47]} Rf8 {[%emt 0:05:10]} (25... b5 $15) 26. f3 {[%emt 0:01:31]} Rd8+ {[%emt 0:01:50]} 27. Kc2 {[%emt 0:00:07]} Rb8 {[%emt 0:02:02]} 28. h3 {[%emt 0:00:20]} b5 {[%emt 0:02:52]} 29. Bf5 {[%emt 0:00:22]} Rf8 {[%emt 0:01:52]} 30. Be4 {[%emt 0:00:35]} b4 {[%emt 0:00:24]} 31. Nd1 {[%emt 0:01:08]} Bf6 {[%emt 0:00:37]} 32. Nf2 {[%emt 0:00:17]} Bg7 {[%emt 0:00:02]} 33. Nd3 {[%emt 0:00:30]} Kb6 {[%emt 0:00:02]} 34. b3 {[%emt 0:00:22]} a5 {[%emt 0:00:58]} 35. Kd2 {[%emt 0:00:29]} Rf7 {[%emt 0:00:55]} 36. Ke2 {[%emt 0:00:38]} a4 {[%emt 0:00:10]} 37. bxa4 {[%emt 0:00:10][%cal Oa4a5]} Ra7 {[%emt 0:01:18]} 38. Nb2 {[%emt 0:00:00]} Rd7 {[%emt 0:00:27]} 39. Nd1 {[%emt 0:00:00]} Ra7 {[%emt 0:00:06]} 40. Bc2 {[%emt 0:00:00]} e4 {[%emt 0:00:11]} 41. fxe4 {[%emt 0:00:00]} Kc6 {[%emt 0:00:10]} 42. Nf2 {[%emt 0:00:00]} Kd6 {[%emt 0:00:03]} 43. Ng4 {[%emt 0:00:03]} Ke6 {[%emt 0:00:18]} 44. e5 {[%emt 0:00:14]} Rd7 {[%emt 0:00:17]} (44... Bxe5 45. Nxh6 Bc3 46. Kf3 $11) (44... Ra8 $15) 45. Be4 {[%emt 0:00:04]} Bxe5 {[%emt 0:00:08]} (45... Ke7 $11) 46. Nxh6 {[%emt 0:00:24]} (46. Bd5+ $14 Kd6 47. Nxh6) 46... Ra7 {[%emt 0:00:02]} 47. Bc2 {[%emt 0:00:11]} (47. Bd5+ Kd7 48. Be4 Rxa4 $15) 47... Bc3 {[%emt 0:00:01]} 48. Kf3 {[%emt 0:00:04]} Kf6 {[%emt 0:00:24]} (48... Ra8 $14) 49. Ng4+ $16 {[%emt 0:00:24]} Ke6 {[%emt 0:00:00]} 50. h6 {[%emt 0:00:02]} ({White should try} 50. Nf2 $1 $16) 50... Rf7+ $14 {[%emt 0:00:04]} 51. Ke4 {[%emt 0:00:13]} Kd6 {[%emt 0:00:22]} 52. a5 {[%emt 0:00:24]} Ke6 {[%emt 0:00:16]} 53. Bb3 {[%emt 0:00:52]} Ra7 {[%emt 0:00:08]} 54. Nf2 {[%emt 0:00:01]} Rxa5 {[%emt 0:00:04]} 55. Nd3 {[%emt 0:00:01]} Kf6 {[%emt 0:00:16]} (55... Ke7 $15) 56. Kd5 {[%emt 0:00:01]} Kg6 {[%emt 0:00:08]} 57. e4 {[%emt 0:00:05]} Kxh6 {[%emt 0:00:03]} 58. e5 {[%emt 0:00:01]} Kg6 {[%emt 0:00:05]} 59. e6 {[%emt 0:00:31]} (59. Nxc5 $11 Kf5 60. e6) 59... Kf6 {[%emt 0:00:03]} 60. Nxc5 {[%emt 0:00:05]} Ke7 {[%emt 0:00:30] Black is more active.} 61. Kc6 {[%emt 0:00:04]} Bd4 {[%emt 0:00:12]} 62. Nb7 {[%emt 0:00:19] [#]} Ra6+ $1 {[%emt 0:00:05]} 63. Kd5 {[%emt 0:00:25]} Bf2 {[%emt 0:00:03][%cal Oa6b6] And now ...Rb6! would win.} 64. c5 {[%emt 0:00:03] Inhibits Rb6.} Rxe6 {[%emt 0:00:03] Hoping for ...Re3.} 65. Nd6 {[%emt 0:00:07]} Rf6 {[%emt 0:00:27] Threatens to win with ...Rf3.} 66. Bc2 $2 {[%emt 0:00:15] Now White is beyond hope.} (66. Ne4 $15 Rf5+ 67. Kc4) 66... Rf3 $19 {[%emt 0:00:10][%cal Of3c3]} 67. Ne4 {[%emt 0:00:14] Prevents Rc3} (67. Nb5 $142) 67... Be3 {[%emt 0:00:06]} 68. c6 {[%emt 0:00:04]} Bf4 {[%emt 0:00:02]} 69. c7 {[%emt 0:00:09] [#]} Kd7 $1 {[%emt 0:00:12]} (69... Rxh3 {is a self mate.} 70. c8=Q Rh6 71. Qb7+ Kf8 72. Bb3 g4 73. Nc5 Rh5+ 74. Kd4 Be5+ 75. Ke4) (69... Bxc7 $2 {loses.} 70. Nxg5 Rf2 71. Bb3 $19) 70. Nc5+ {[%emt 0:00:24]} Kxc7 {[%emt 0:00:01]} 71. Bf5 {[%emt 0:00:02]} (71. Na6+ {is a better defense.} Kb6 72. Nxb4) 71... Kb6 {[%emt 0:00:11] aiming for ...Ra3.} 72. Nd3 {[%emt 0:00:07]} Bd2 {[%emt 0:00:11]} 73. Ke4 {[%emt 0:00:04]} Re3+ {[%emt 0:00:09]} 74. Kd4 {[%emt 0:00:02]} Re7 {[%emt 0:00:06] Strongly threatening ...Kb5.} 75. Kc4 {[%emt 0:00:13]} Rc7+ {[%emt 0:00:03]} 76. Kb3 $2 {[%emt 0:00:08]} (76. Kd4 {was the only chance.}) 76... Rc3+ {[%emt 0:00:04]} 77. Kb2 {[%emt 0:00:02]} Ka5 {[%emt 0:00:04]} 78. Kb1 {[%emt 0:00:07]} Be3 {[%emt 0:00:16]} 79. Be4 {[%emt 0:00:36]} Bd4 {[%emt 0:00:24]} 80. Bf5 {[%emt 0:00:05]} Kb5 {[%emt 0:00:04]} 81. Be4 {[%emt 0:00:11]} Bf6 {[%emt 0:00:09]} 82. Bf5 {[%emt 0:00:04]} Kc4 {[%emt 0:00:04]} 83. Ne1 {[%emt 0:00:01]} (83. Nb2+ $19 Kd4 84. Bg4) 83... Re3 {[%emt 0:00:19] Black mates.} 84. Nc2 {[%emt 0:00:14]} Rf3 {[%emt 0:00:03]} 85. Kc1 {[%emt 0:00:06]} Kc3 {[%emt 0:00:09] Weighted Error Value: White=0.13 (very precise) /Black=0.12 (very precise)} ({Worse is} 85... Rxf5 86. Ne3+ Kd4 87. Nxf5+ Ke5 88. Nh6 $11) 0-1

[Event "14th Danzhou Super GM 2023"]
[Site "Danzhou"]
[Date "2023.11.19"]
[Round "6.2"]
[White "Xu, Xiangyu"]
[Black "Liu, Yan"]
[Result "1/2-1/2"]
[ECO "E45"]
[WhiteElo "2623"]
[BlackElo "2579"]
[Annotator "TA"]
[PlyCount "64"]
[EventDate "2023.11.17"]
[EventCountry "CHN"]
[SourceTitle "playchess.com"]
[Source "ChessBase"]
[SourceQuality "1"]
[TimeControl "2700+10"]

{[%evp 17,64,26,42,47,43,45,69,58,86,65,77,65,63,30,22,31,29,0,0,0,0,0,0,0,0,0,0,0,0,0,0,0,0,0,0,0,0,0,0,0,0,0,0,0,0,0,0,0,0]} 1. d4 {[%emt 0:00:05]} Nf6 {[%emt 0:00:05]} 2. c4 {[%emt 0:00:03]} e6 {[%emt 0:00:04]} 3. Nc3 {[%emt 0:00:02]} Bb4 {[%emt 0:00:12]} 4. e3 {[%emt 0:00:18]} b6 {[%emt 0:00:59]} 5. Nge2 {[%emt 0:00:10]} Ba6 {[%emt 0:00:05]} 6. Ng3 {[%emt 0:00:24]} Bxc3+ {[%emt 0:01:07]} 7. bxc3 {[%emt 0:00:02]} d5 {[%emt 0:00:23]} 8. Qf3 {[%emt 0:00:03]} O-O {[%emt 0:01:05]} 9. cxd5 {[%emt 0:00:03]} exd5 {[%emt 0:06:32]} 10. Bxa6 {[%emt 0:00:02] E45: Nimzo-Indian: Rubinstein: 4...b6 5 Ne2 Ba6.} Nxa6 {[%emt 0:00:02]} 11. Qe2 {[%emt 0:00:02]} Qc8 {[%emt 0:00:59]} 12. O-O {[%emt 0:00:04] White is slightly better.} c5 {[%emt 0:00:39]} 13. f3 {[%emt 0:00:02]} cxd4 {[%emt 0:05:04]} 14. cxd4 {[%emt 0:00:02] [#] Ba3 would be deadly.} Nb4 $146 {[%emt 0:00:06]} ({Predecessor:} 14... Qc4 15. Ba3 Rfc8 16. Rac1 Qxe2 17. Nxe2 Rc4 18. Nc3 Rac8 19. Nb5 Rxc1 20. Rxc1 Rxc1+ 21. Bxc1 {1-0 Kariz,P (2511)-Strbad,F (2082) SLO-ch4 corr 1999}) 15. Ba3 {[%emt 0:08:05]} Qc3 {[%emt 0:01:07]} 16. Bxb4 {[%emt 0:06:05]} Qxb4 {[%emt 0:00:03]} 17. Rab1 {[%emt 0:00:09]} Qa4 {[%emt 0:00:57] The position is equal.} 18. Rfc1 {[%emt 0:00:06]} Rac8 {[%emt 0:01:15] Wards off Rc7} 19. Qd2 {[%emt 0:00:42]} g6 {[%emt 0:01:33]} 20. Ne2 {[%emt 0:00:26][%cal Bg3e2,Be2f4,Bf4d3,Bd3e5][%mdl 32]} Rfe8 {[%emt 0:01:06]} 21. Nf4 {[%emt 0:01:52]} Qa3 {[%emt 0:01:33]} 22. Kf2 {[%emt 0:00:53]} h5 {[%emt 0:01:35]} 23. h3 {[%emt 0:01:21]} Kg7 {[%emt 0:01:08]} 24. Nd3 {[%emt 0:00:53]} Qd6 {[%emt 0:01:01]} 25. Rxc8 {[%emt 0:02:10]} Rxc8 {[%emt 0:00:02]} 26. Rc1 {[%emt 0:00:02]} Rxc1 {[%emt 0:00:46]} 27. Qxc1 $11 {[%emt 0:00:02][%mdl 4096] Endgame KQN-KQN} h4 {[%emt 0:01:19]} 28. Ne5 {[%emt 0:01:02]} Nd7 {[%emt 0:00:17]} 29. Qc6 {[%emt 0:00:17]} Qb4 {[%emt 0:00:07]} ({Much less strong is} 29... Qxc6 30. Nxc6 a5 31. Ne7 $16) 30. Qxd7 {[%emt 0:03:08]} (30. Nxd7 $5 Qd2+ $8 31. Kg1 (31. Kf1 Qd1+ 32. Kf2 Qd2+ 33. Kg1 Qe1+ 34. Kh2 Qg3+ 35. Kh1 Qe1+ 36. Kh2 Qg3+ 37. Kh1 Qe1+ 38. Kh2 $11) 31... Qe1+ 32. Kh2 Qg3+ 33. Kh1 Qe1+ 34. Kh2 Qg3+ 35. Kh1 Qe1+ 36. Kh2 $11) 30... Qd2+ {[%emt 0:00:03]} 31. Kf1 {[%emt 0:00:02]} Qd1+ {[%emt 0:00:02]} 32. Kf2 {[%emt 0:00:01]} Qd2+ {[%emt 0:00:02] Weighted Error Value: White=0.02 (flawless) /Black=0.03 (flawless)} 1/2-1/2

[Event "14th Danzhou Super GM 2023"]
[Site "Danzhou"]
[Date "2023.11.19"]
[Round "6.3"]
[White "Bai, Jinshi"]
[Black "Cheparinov, Ivan"]
[Result "1/2-1/2"]
[ECO "E16"]
[WhiteElo "2585"]
[BlackElo "2649"]
[Annotator "TA"]
[PlyCount "133"]
[EventDate "2023.11.17"]
[EventCountry "CHN"]
[SourceTitle "playchess.com"]
[Source "ChessBase"]
[SourceQuality "1"]
[TimeControl "2700+10"]

{[%evp 13,133,4,12,10,14,14,14,14,14,0,0,14,29,26,32,31,23,25,20,21,33,14,22,12,30,27,26,21,26,10,10,10,10,10,25,25,30,29,18,22,22,24,29,22,83,82,81,72,91,95,87,83,83,87,79,0,0,0,0,0,0,0,0,0,9,0,0,0,0,0,0,0,0,0,0,0,0,0,0,0,0,0,0,0,0,0,0,0,0,0,0,0,0,0,0,0,0,0,0,0,0,0,0,0,0,0,0,0,0,0,0,0,0,0,0,0,0,0,0,0,0,0]} 1. d4 {[%emt 0:00:05]} Nf6 {[%emt 0:00:01]} 2. c4 {[%emt 0:00:07]} e6 {[%emt 0:00:02]} 3. g3 {[%emt 0:00:17]} d5 {[%emt 0:00:03]} 4. Bg2 {[%emt 0:00:02]} Bb4+ {[%emt 0:00:01]} 5. Nd2 {[%emt 0:00:06]} O-O {[%emt 0:00:03]} 6. Ngf3 {[%emt 0:00:04]} b6 {[%emt 0:00:01]} 7. O-O {[%emt 0:00:03]} Bb7 {[%emt 0:00:02]} 8. b3 {[%emt 0:00:06] E16: Queen's Indian: 4 g3 Bb7 5 Bg2 Bb4+.} c5 {[%emt 0:00:02]} 9. Bb2 {[%emt 0:00:19] Wards off Bc3} Qe7 {[%emt 0:00:10]} 10. cxd5 {[%emt 0:01:48]} Bxd5 {[%emt 0:00:02]} 11. dxc5 {[%emt 0:00:43]} Bxc5 {[%emt 0:00:08]} 12. e3 {[%emt 0:04:27] [#]} Nbd7 $146 {[%emt 0:01:21]} ({Predecessor:} 12... a5 13. Qe2 a4 14. Ne5 Bxg2 15. Kxg2 Qb7+ 16. Qf3 Qxf3+ 17. Kxf3 Nd5 18. a3 f6 19. Nd3 axb3 20. Nxb3 Nd7 {½-½ Pepene,G (2492)-Szczepanski,Z (2476) EU-chT11 sf3 email 2017 [2]}) 13. Qe2 {[%emt 0:02:29]} Ne4 {[%emt 0:04:46]} 14. Nxe4 {[%emt 0:06:41]} Bxe4 {[%emt 0:00:01]} 15. Rfd1 {[%emt 0:00:04][%cal Ob3b4]} Rfd8 {[%emt 0:01:31]} 16. Rac1 {[%emt 0:02:06][%cal Ba1c1,Bc1c4,Bc4g4][%mdl 32]} h6 {[%emt 0:04:06]} 17. Rc4 {[%emt 0:10:18]} Bd5 {[%emt 0:00:06]} 18. Rg4 {[%emt 0:00:06]} Nf6 {[%emt 0:01:03]} 19. Rf4 {[%emt 0:01:49][%cal Ob3b4]} Bb7 {[%emt 0:11:22]} 20. Bxf6 {[%emt 0:02:19]} gxf6 {[%emt 0:00:09]} 21. Rh4 {[%emt 0:03:09]} Rxd1+ {[%emt 0:00:43]} 22. Qxd1 {[%emt 0:00:01]} Rd8 {[%emt 0:00:28]} 23. Nd4 $36 {[%emt 0:00:27][%mdl 2048] White has good play.} Bxg2 {[%emt 0:04:42] A strong pair of Bishops.} (23... Bxd4 {simplifies} 24. exd4 Bxg2 25. Kxg2 Qb7+) 24. Qg4+ {[%emt 0:01:25]} Kh7 $1 {[%emt 0:00:17]} 25. Qf4 {[%emt 0:00:32]} Qf8 {[%emt 0:00:02]} 26. Kxg2 {[%emt 0:00:02] Black should prevent Nc6.} Bxd4 {[%emt 0:00:12]} 27. exd4 $11 {[%emt 0:00:01][%mdl 4096] Endgame KQR-KQR} Rd5 {[%emt 0:00:11]} 28. Qc7 {[%emt 0:00:30]} (28. Qxf6 $2 {perishes.} Rf5 $19) 28... f5 {[%emt 0:03:30]} (28... Kg6 $11 {keeps the balance.}) 29. Qxa7 $16 {[%emt 0:00:16] White is more active.} Kg7 {[%emt 0:00:54]} 30. Qc7 {[%emt 0:01:41]} Qd8 {[%emt 0:01:22]} 31. Qxd8 {[%emt 0:01:12]} Rxd8 {[%emt 0:00:02] KR-KR} 32. a4 {[%emt 0:00:15]} b5 {[%emt 0:00:30]} 33. a5 {[%emt 0:02:39]} b4 {[%emt 0:00:03]} 34. g4 {[%emt 0:00:45]} (34. a6 $16) 34... Rd5 $11 {[%emt 0:02:10] The position is equal.} 35. a6 {[%emt 0:00:02]} fxg4 $1 {[%emt 0:02:10]} 36. Rxg4+ {[%emt 0:00:02]} Kf8 {[%emt 0:00:01]} 37. Rh4 {[%emt 0:00:04]} Kg7 $1 {[%emt 0:00:26]} 38. Rg4+ {[%emt 0:00:53]} Kf8 {[%emt 0:00:01]} 39. Rh4 {[%emt 0:00:03]} Kg7 $1 {[%emt 0:00:03]} 40. a7 {[%emt 0:00:04]} Ra5 {[%emt 0:00:01]} 41. Rh5 {[%emt 0:00:16][%mdl 64] [#] Promotion} Rxa7 {[%emt 0:01:16]} 42. Rb5 {[%emt 0:00:02]} Rc7 {[%emt 0:00:11]} 43. Rxb4 {[%emt 0:00:02]} Rc3 {[%emt 0:00:01]} 44. f3 {[%emt 0:00:55]} Kf6 {[%emt 0:00:24]} 45. Kg3 {[%emt 0:00:05]} Rd3 {[%emt 0:01:10]} 46. Kf4 {[%emt 0:00:02]} Rd2 {[%emt 0:00:10]} 47. h3 {[%emt 0:00:50]} Rh2 {[%emt 0:00:13]} 48. Kg3 {[%emt 0:00:07]} Rb2 {[%emt 0:00:07]} 49. Kg4 {[%emt 0:00:24]} Rg2+ {[%emt 0:00:11]} 50. Kf4 {[%emt 0:00:07]} Rh2 {[%emt 0:00:05]} 51. Kg3 {[%emt 0:00:24]} Rb2 {[%emt 0:00:02]} 52. h4 {[%emt 0:00:01]} Rb1 {[%emt 0:01:01]} 53. Kf4 {[%emt 0:01:12]} Rh1 {[%emt 0:00:07]} 54. Kg4 {[%emt 0:00:04]} Kg6 {[%emt 0:01:47]} 55. Rc4 {[%emt 0:00:45]} Rg1+ {[%emt 0:01:31]} 56. Kf4 {[%emt 0:00:02] [#] aiming for Ke5.} Rh1 {[%emt 0:00:02]} 57. Kg3 {[%emt 0:00:14]} Rg1+ {[%emt 0:00:17]} 58. Kf4 {[%emt 0:00:15]} Rh1 {[%emt 0:00:02]} 59. b4 {[%emt 0:00:14] Black must now prevent Ke5.} Rxh4+ {[%emt 0:00:05]} 60. Ke5 {[%emt 0:00:01] Kd6 would be deadly.} Rh1 {[%emt 0:00:34]} 61. Rc2 {[%emt 0:00:53] Rg2+ is the strong threat.} Rb1 {[%emt 0:01:50]} 62. Rg2+ {[%emt 0:00:02]} Kh7 {[%emt 0:00:01]} 63. Kf6 {[%emt 0:00:07]} Rxb4 {[%emt 0:00:02]} 64. Rg7+ {[%emt 0:00:21]} Kh8 {[%emt 0:00:01]} 65. Rxf7 {[%emt 0:00:02]} Rxd4 {[%emt 0:00:06] ( -> ...Rf4+)} 66. Kxe6 {[%emt 0:00:10]} Kg8 {[%emt 0:00:11]} 67. Ra7 {[%emt 0:00:13] Weighted Error Value: White=0.02 (flawless) /Black=0.03 (flawless)} 1/2-1/2

[Event "14th Danzhou Super GM 2023"]
[Site "Danzhou"]
[Date "2023.11.19"]
[Round "6.4"]
[White "Ma, Qun"]
[Black "Tan, Zhongyi"]
[Result "1-0"]
[ECO "C42"]
[WhiteElo "2653"]
[BlackElo "2513"]
[Annotator "TA"]
[PlyCount "125"]
[EventDate "2023.11.17"]
[EventCountry "CHN"]
[SourceTitle "playchess.com"]
[Source "ChessBase"]
[SourceQuality "1"]
[TimeControl "2700+10"]

{[%evp 19,125,3,16,12,47,54,53,23,12,35,47,47,34,47,34,37,37,27,53,61,43,27,40,27,17,13,10,12,7,10,6,8,61,42,85,100,92,53,36,25,39,43,116,81,106,90,101,95,100,97,142,77,322,233,265,229,277,197,322,326,327,317,319,304,323,310,348,341,409,421,442,429,405,402,557,286,368,0,328,295,272,273,281,275,498,454,592,600,562,0,417,0,533,341,337,0,524,505,1439,676,1013,901,5322,9150,12839,12839,12840,12840]} 1. e4 {[%emt 0:00:08]} e5 {[%emt 0:00:02]} 2. Nf3 {[%emt 0:00:03]} Nf6 {[%emt 0:00:03]} 3. Nxe5 {[%emt 0:00:10]} d6 {[%emt 0:00:02]} 4. Nf3 {[%emt 0:00:03]} Nxe4 {[%emt 0:00:03]} 5. d4 {[%emt 0:00:04]} d5 {[%emt 0:00:02]} 6. Bd3 {[%emt 0:00:07]} Bd6 {[%emt 0:00:03]} 7. O-O {[%emt 0:00:06]} O-O {[%emt 0:00:03]} 8. c4 {[%emt 0:00:10]} c6 {[%emt 0:00:02]} 9. Qc2 {[%emt 0:00:08]} Na6 {[%emt 0:01:25]} 10. a3 {[%emt 0:00:04]} Bg4 {[%emt 0:04:07] [#] aiming for ...Bxf3.} 11. Ne5 {[%emt 0:00:06] C42: Petroff Defence: 3 Nxe5 and unusual White 3rd moves.} Bf5 {[%emt 0:00:05] The modern move.} 12. b4 {[%emt 0:00:06]} c5 {[%emt 0:01:55]} 13. cxd5 {[%emt 0:00:23] White is slightly better.} (13. bxc5 Bxe5 14. dxe5 Naxc5 15. cxd5 Qxd5 $17) (13. f3 $5 {[%cal Rc4d5]} Bxe5 14. dxe5 (14. fxe4 $2 Bxd4+ 15. Kh1 dxe4 $19) 14... dxc4 15. Bxe4 (15. Qxc4 $2 b5 $19) 15... Qd4+ 16. Qf2 Bxe4 17. Qxd4 cxd4 18. fxe4 $14) 13... cxd4 {[%emt 0:00:42]} 14. Bxe4 {[%emt 0:00:07]} Rc8 $1 {[%emt 0:00:28]} 15. Nc6 {[%emt 0:00:59]} Bxe4 {[%emt 0:00:03]} 16. Qxe4 {[%emt 0:00:03]} bxc6 {[%emt 0:00:01]} 17. dxc6 {[%emt 0:00:11]} Re8 {[%emt 0:00:34]} 18. Qf3 {[%emt 0:00:02]} Qb6 {[%emt 0:00:13]} (18... Qh4 19. g3 Qd8 20. Nd2 $16) 19. Nd2 {[%emt 0:00:02]} Rxc6 {[%emt 0:00:29]} (19... Qxc6 $2 20. Qxc6 Rxc6 21. b5 Rxc1 22. Raxc1 $18 (22. Rfxc1 Nc5 $18)) 20. Nb3 {[%emt 0:00:01]} Rc3 {[%emt 0:00:21]} 21. Qd1 {[%emt 0:00:12]} d3 $1 {[%emt 0:00:03] [#]} 22. Bb2 $5 $146 {[%emt 0:12:37][%mdl 8] An interesting novelty.} ({Predecessor:} 22. Bd2 Rc2 23. g3 Bf8 24. Qf3 Rd8 25. Be3 Qg6 26. Nd4 Rc4 27. Rac1 Rcxd4 28. Bxd4 Rxd4 {1-0 Dominguez Perez,L (2763)-Wang,H (2726) FIDE World Cup 2019 (3.4)}) 22... Rc2 {[%emt 0:01:33]} 23. Bd4 {[%emt 0:00:05]} Qb5 {[%emt 0:01:15]} 24. Qg4 {[%emt 0:01:38][%csl Gd4][%cal Rg4g7]} Bf8 {[%emt 0:00:51]} 25. Rfd1 {[%emt 0:04:51]} Qa4 {[%emt 0:08:53]} (25... Nb8 $11) 26. Nd2 $14 {[%emt 0:01:56] Strongly threatening Ne4.} (26. Rxd3 Qxa3 27. h3 Qxb4) 26... Qc6 {[%emt 0:05:03] Against Ne4} 27. Qf5 {[%emt 0:14:49]} Nc7 {[%emt 0:03:09][%cal Ba6c7,Bc7e6,Be6f4][%mdl 32]} 28. Nf3 {[%emt 0:03:33] And now Ne5 would win.} Ne6 $1 {[%emt 0:01:58]} 29. Qxd3 {[%emt 0:02:38]} (29. Rxd3 $2 Rc1+ 30. Rd1 Nxd4 31. Raxc1 (31. Rdxc1 $2 Ne2+ 32. Kh1 Nxc1 $19) (31. Nxd4 $2 Rxa1 32. Rxa1 Qc3 $19) 31... Qxc1 32. Rxc1 Nxf5 $19) 29... Nf4 {[%emt 0:09:56]} 30. Qf5 {[%emt 0:00:07]} Re4 {[%emt 0:00:17] White leaves nothing to chance now.} (30... Ne2+ $1 $14 31. Kh1 g6) 31. Be3 $40 {[%emt 0:00:43][%mdl 128] White attacks with force. Dancing on a razor blade.} (31. Ng5 $2 Re1+ 32. Rxe1 Qxg2#) 31... g6 {[%emt 0:04:15]} 32. Qd7 {[%emt 0:00:40]} Qf6 {[%emt 0:01:20][%cal Of4g2]} 33. Bxf4 {[%emt 0:01:42]} (33. Qxa7 $2 Nxg2 34. Nd2 Nh4 $19) 33... Qxf4 {[%emt 0:00:02]} 34. Qxa7 {[%emt 0:00:21]} Ree2 {[%emt 0:00:01][%cal Of8c5]} 35. Rf1 {[%emt 0:00:28]} (35. Qd4 $142 Qc7 36. Ne1) 35... g5 {[%emt 0:00:31]} (35... Ra2 $16 {was called for.}) 36. h3 {[%emt 0:00:06]} h5 {[%emt 0:00:31]} 37. Qd4 {[%emt 0:00:10] Qxf4 is the strong threat.} (37. Nd4 $2 Bd6 38. Nf3 (38. Nxe2 $2 Qh2#) (38. g3 Qxg3+ 39. fxg3 Rg2+ 40. Kh1 Rh2+ 41. Kg1 Rcg2#) 38... g4 $19) 37... Qf5 {[%emt 0:00:32]} 38. Rae1 {[%emt 0:00:03]} g4 {[%emt 0:00:11]} (38... Be7 {was worth a try.} 39. Rxe2 Rxe2) 39. hxg4 $18 {[%emt 0:00:59]} hxg4 {[%emt 0:00:01]} 40. Rxe2 {[%emt 0:00:38]} Rxe2 {[%emt 0:00:01]} 41. Nh4 {[%emt 0:00:25]} Qe6 {[%emt 0:00:16]} 42. Qd3 {[%emt 0:00:11]} Re4 {[%emt 0:00:32]} 43. g3 {[%emt 0:00:04]} Be7 {[%emt 0:00:02]} 44. Ng2 {[%emt 0:00:03]} Bg5 {[%emt 0:00:02]} 45. Rd1 {[%emt 0:00:08]} Re5 {[%emt 0:00:22]} 46. Qd4 {[%emt 0:00:13]} Re2 {[%emt 0:00:17]} 47. Qd5 {[%emt 0:00:14] Inhibits Qf5.} Qf6 {[%emt 0:00:03]} 48. Qd4 {[%emt 0:00:12]} ({White should play} 48. Rf1 $18) 48... Qf5 $2 {[%emt 0:00:02][%mdl 8192]} (48... Qe6 $1 $11 49. Nf4 Re1+ 50. Rxe1 Qxe1+ 51. Kh2 Bf6) 49. Rf1 {[%emt 0:00:10]} (49. Nf4 Bxf4 50. gxf4 Kh7 $18) 49... Rd2 {[%emt 0:00:18]} 50. Qc3 {[%emt 0:00:04]} Ra2 {[%emt 0:00:12]} 51. Ne3 {[%emt 0:00:03]} Qe6 {[%emt 0:00:10]} (51... Qe4 52. Qc8+ Kh7) 52. Re1 {[%emt 0:00:01]} Kh7 {[%emt 0:00:12]} 53. Qd3+ {[%emt 0:00:04]} Kg8 {[%emt 0:00:07]} 54. Qc3 $2 {[%emt 0:00:37]} (54. Qd1 $18) 54... Bf6 $2 {[%emt 0:00:02][%mdl 8192] Inhibits Nxg4.} (54... Kh7 $1 $11 {and Black stays safe.} 55. Qd3+ f5) 55. Qd3 {[%emt 0:00:12]} Bg5 $1 {[%emt 0:00:01]} 56. Kf1 {[%emt 0:00:08] Threatens to win with Nd5.} Qh6 {[%emt 0:00:19][%cal Rh6h1] [#]} 57. Kg2 {[%emt 0:00:09] Inhibits Qh1+.} (57. Nxg4 $2 Qh1#) ({Only move:} 57. Qe4 $1 $18 {[%cal Re4a8]} Bxe3 58. Rxe3) 57... Qe6 $2 {[%emt 0:00:21][%mdl 8192]} (57... Qc6+ $1 $11 58. Kg1 Rxf2) 58. b5 {[%emt 0:00:15] White is clearly winning.} Qe7 {[%emt 0:00:10]} (58... Kf8 $142 59. Qd4 Bf6 60. Qc5+ Be7) 59. b6 {[%emt 0:00:15]} (59. Qd5 $142 Bxe3 60. Qxa2 Qb7+ 61. Kh2) 59... Rxa3 {[%emt 0:00:04]} 60. Qf5 {[%emt 0:00:09] Hoping for Qc8+.} Bxe3 {[%emt 0:00:10]} 61. Qxg4+ {[%emt 0:00:02]} ({Weaker is} 61. Rxe3 Rxe3 62. Qc8+ (62. fxe3 Qb7+ 63. Kg1 Qxb6 $16) (62. Qxg4+ Kf8 $16) 62... Kg7 63. Qxg4+ (63. fxe3 Qe4+ 64. Kh2 Qh7+ 65. Kg2 Qe4+ 66. Kh2 Qh7+ 67. Kg2 Qe4+ $11) 63... Kf8 64. fxe3 Qb7+ 65. e4 Qxb6 $14) (61. fxe3 Qb7+ 62. Kf2 Qxb6 $14) 61... Qg5 {[%emt 0:00:07]} 62. Qxg5+ {[%emt 0:00:09]} ({Not} 62. Qc8+ Kg7 63. Rxe3 Rxe3 64. fxe3 Qd5+ 65. Kh2 Qh5+ 66. Qh3 Qb5 $16) 62... Bxg5 {[%emt 0:00:02]} 63. b7 {[%emt 0:00:01] Weighted Error Value: White=0.50/Black=0.55} 1-0